Workbook

Sheet Sheet1
A1: IAPAR 306 gene | B1: Gene Name | C1: Description | D1: A Average Length | E1: A* Average Length | F1: Aw Average Length | G1: A Standard Deviation | H1: A Coefficient of Variation | I1: A* Standard Deviation | J1: A* Coefficient of Variation | K1: Aw Standard Deviation | L1: Aw Coefficient of Variation | M1: A-A* difference | N1: A-Aw difference | O1: Aw-A* difference | P1: Note
A2: XAC3033 | B2: yodB | C2: cytochrome B561 | D2: 188 | E2: 226 | F2: 188 | G2: 0 | H2: =G2/D2 -> 0 | I2: 0 | J2: =I2/E2 -> 0 | K2: 0 | L2: =K2/F2 -> 0 | M2: 38 | N2: 0 | O2: 38 | P2: A* longer, frameshift
A3: XAC1928 | B3: hypothetical | D3: 278 | E3: 219 | F3: 278 | G3: 0 | H3: =G3/D3 -> 0 | I3: 0 | J3: =I3/E3 -> 0 | K3: 0 | L3: =K3/F3 -> 0 | M3: 59 | N3: 0 | O3: 59 | P3: A* shorter at 3' end
A4: XAC2786 | B4: xopN | D4: 734 | E4: 686 | F4: 734 | G4: 0 | H4: =G4/D4 -> 0 | I4: 0 | J4: =I4/E4 -> 0 | K4: 0 | L4: =K4/F4 -> 0 | M4: 48 | N4: 0 | O4: 48 | P4: A* truncation at 3' end
A5: XAC4248 | B5: gln | C5: gluconolactonase | D5: 346 | E5: 344 | F5: 336 | G5: 0 | H5: =G5/D5 -> 0 | I5: 1.870828693 | J5: =I5/E5 -> 0.005438455504 | K5: 0 | L5: =K5/F5 -> 0 | M5: 2 | N5: 10 | O5: 2 | P5: Aw different to A
A6: XAC3772 | C6: LysR amily transcriptional regulator | D6: 314.7272727 | E6: 329 | F6: 447 | G6: 3.22182639 | H6: =G6/D6 -> 0.01023688339 | I6: 0 | J6: =I6/E6 -> 0 | K6: 0 | L6: =K6/F6 -> 0 | M6: 14.27272727 | N6: 132.2727273 | O6: 14.27272727 | P6: Aw longer
A7: XAC4244 | B7: xylB | D7: 549 | E7: 549 | F7: 628 | G7: 0 | H7: =G7/D7 -> 0 | I7: 0 | J7: =I7/E7 -> 0 | K7: 0 | L7: =K7/F7 -> 0 | M7: 0 | N7: 79 | O7: 0 | P7: Aw longer, frameshift
A8: XAC1545 | B8: hypothetical | D8: 273 | E8: 272 | F8: 273 | G8: 0 | H8: =G8/D8 -> 0 | I8: 0 | J8: =I8/E8 -> 0 | K8: 0 | L8: =K8/F8 -> 0 | M8: 1 | N8: 0 | O8: 1 | P8: Deletion of 1 codon in A*
A9: XAC0046 | B9: rffM | C9: UDP-N-acetyl-D-mannosamine transferase | D9: 268.9090909 | E9: 259 | F9: 249 | G9: 4.349408623 | H9: =G9/D9 -> 0.01617427142 | I9: 0 | J9: =I9/E9 -> 0 | K9: 0 | L9: =K9/F9 -> 0 | M9: 9.909090909 | N9: 19.90909091 | O9: 9.909090909 | P9: Different start + indel in Aw
A10: XAC4210 | B10: glyS | D10: 746 | E10: 746 | F10: 744 | G10: 0 | H10: =G10/D10 -> 0 | I10: 0 | J10: =I10/E10 -> 0 | K10: 0 | L10: =K10/F10 -> 0 | M10: 0 | N10: 2 | O10: 0 | P10: Frameshift/Recombination Aw
A11: XAC1882 | B11: rpfA | C11: aconitate hydratase | D11: 885.5238095 | E11: 756.4666667 | F11: 925 | G11: 7.789463201 | H11: =G11/D11 -> 0.008796446936 | I11: 15.62846406 | J11: =I11/E11 -> 0.02065981853 | K11: 0 | L11: =K11/F11 -> 0 | M11: 129.0571429 | N11: 39.47619048 | O11: 129.0571429 | P11: Indel in Aw
A12: XAC1839 | B12: mtnD | D12: 189 | E12: 200 | F12: 189 | G12: 0 | H12: =G12/D12 -> 0 | I12: 0 | J12: =I12/E12 -> 0 | K12: 0 | L12: =K12/F12 -> 0 | M12: 11 | N12: 0 | O12: 11 | P12: Slightly longer 5' in A*
A13: XAC4001 | C13: integral membrane protein | D13: 147 | E13: 137 | F13: 168 | G13: 0 | H13: =G13/D13 -> 0 | I13: 0 | J13: =I13/E13 -> 0 | K13: 0 | L13: =K13/F13 -> 0 | M13: 10 | N13: 21 | O13: 10 | P13: Pseudogene in A
A14: XAC0050 | B14: hypothetical | D14: 261 | E14: 341 | F14: 341 | G14: 0 | H14: =G14/D14 -> 0 | I14: 0 | J14: =I14/E14 -> 0 | K14: 0 | L14: =K14/F14 -> 0 | M14: 80 | N14: 80 | O14: 80 | P14: Pseudogene in A
A15: XAC0707 | D15: 386 | E15: 0 | F15: 0 | G15: 0 | H15: =G15/D15 -> 0 | I15: - | J15: - | K15: - | L15: - | M15: 386 | N15: 386 | O15: 386 | P15: Pseudogene in A
A16: XAC0708 | D16: 657.9090909 | E16: 965 | F16: 965 | G16: 2.682973557 | H16: =G16/D16 -> 0.004078030831 | I16: 0 | J16: =I16/E16 -> 0 | K16: 0 | L16: =K16/F16 -> 0 | M16: 307.0909091 | N16: 307.0909091 | O16: 307.0909091 | P16: Pseudogene in A
A17: XAC0825 | B17: hypothetical | D17: 147.5 | E17: 0 | F17: 0 | G17: 1.692228224 | H17: =G17/D17 -> 0.01147273373 | I17: - | J17: - | K17: - | L17: - | M17: 147.5 | N17: 147.5 | O17: 147.5 | P17: Pseudogene in A
A18: XAC4029 | B18: catB | D18: 393.9545455 | E18: 503.125 | F18: 503.2 | G18: 0.2945791227 | H18: =G18/D18 -> 0.0007477490134 | I18: 1.352081728 | J18: =I18/E18 -> 0.00268736741 | K18: 1.385640646 | L18: =K18/F18 -> 0.002753657882 | M18: 109.1704545 | N18: 109.2454545 | O18: 109.1704545 | P18: Pseudogene in A
A19: XAC4030 | B19: catB | D19: 173 | E19: 0 | F19: 0 | G19: 0 | H19: =G19/D19 -> 0 | I19: - | J19: - | K19: - | L19: - | M19: 173 | N19: 173 | O19: 173 | P19: Pseudogene in A
A20: XANAC_0965 | D20: 142 | E20: 308 | F20: 308 | G20: 0 | H20: =G20/D20 -> 0 | I20: 0 | J20: =I20/E20 -> 0 | K20: 0 | L20: =K20/F20 -> 0 | M20: 166 | N20: 166 | O20: 166 | P20: Pseudogene in A
A21: XAC0860 | B21: oppD | C21: ABC transporter ATP-binding protein | D21: 475.6190476 | E21: 550 | F21: 550 | G21: 3.201473584 | H21: =G21/D21 -> 0.006731171932 | I21: 0 | J21: =I21/E21 -> 0 | K21: 0 | L21: =K21/F21 -> 0 | M21: 74.38095238 | N21: 74.38095238 | O21: 74.38095238 | P21: Pseudogene in A
A22: XAC0524 | C22: PbsX transcriptional regulator | D22: 152.7272727 | E22: 118 | F22: 154 | G22: 1.5587662 | H22: =G22/D22 -> 0.01020620726 | I22: 0 | J22: =I22/E22 -> 0 | K22: 0 | L22: =K22/F22 -> 0 | M22: 34.72727273 | N22: 1.272727273 | O22: 34.72727273 | P22: Pseudogene in A*
A23: XAC1388 | B23: hypothetical | D23: 1199 | E23: 976 | F23: 1199 | G23: 0 | H23: =G23/D23 -> 0 | I23: 0 | J23: =I23/E23 -> 0 | K23: 0 | L23: =K23/F23 -> 0 | M23: 223 | N23: 0 | O23: 223 | P23: Pseudogene in A*
A24: XAC1606 | B24: hypothetical | D24: 177 | E24: 109 | F24: 177 | G24: 0 | H24: =G24/D24 -> 0 | I24: 0 | J24: =I24/E24 -> 0 | K24: 0 | L24: =K24/F24 -> 0 | M24: 68 | N24: 0 | O24: 68 | P24: Pseudogene in A*
A25: XAC1880 | B25: rpfB | D25: 561 | E25: 365 | F25: 561 | G25: 0 | H25: =G25/D25 -> 0 | I25: 0 | J25: =I25/E25 -> 0 | K25: 0 | L25: =K25/F25 -> 0 | M25: 196 | N25: 0 | O25: 196 | P25: Pseudogene in A*
A26: XAC1940 | C26: GGDEF family protein | D26: 979.5 | E26: 856.8666667 | F26: 957.6 | G26: 2.872281323 | H26: =G26/D26 -> 0.00293239543 | I26: 11.64245106 | J26: =I26/E26 -> 0.01358723768 | K26: 6.499230724 | L26: =K26/F26 -> 0.006786999503 | M26: 122.6333333 | N26: 21.9 | O26: 122.6333333 | P26: Pseudogene in A*
A27: XAC2609 | C27: carboxypeptidase | D27: 432.3636364 | E27: 262.8125 | F27: 432 | G27: 0.7713892158 | H27: =G27/D27 -> 0.001784121399 | I27: 3.012992698 | J27: =I27/E27 -> 0.0114644193 | K27: 0 | L27: =K27/F27 -> 0 | M27: 169.5511364 | N27: 0.3636363636 | O27: 169.5511364 | P27: Pseudogene in A*
A28: XAC2895 | B28: yagT | C28: xanthine dehydrogenase iron-sulfur-binding subunit | D28: 217.2727273 | E28: 114 | F28: 217 | G28: 0.7215685394 | H28: =G28/D28 -> 0.00332102675 | I28: 0 | J28: =I28/E28 -> 0 | K28: 0 | L28: =K28/F28 -> 0 | M28: 103.2727273 | N28: 0.2727272727 | O28: 103.2727273 | P28: Pseudogene in A*
A29: XAC3090 | C29: LRR | D29: 545.4545455 | E29: 470 | F29: 629 | G29: 7.794891313 | H29: =G29/D29 -> 0.01429063407 | I29: 0 | J29: =I29/E29 -> 0 | K29: 0 | L29: =K29/F29 -> 0 | M29: 75.45454545 | N29: 83.54545455 | O29: 75.45454545 | P29: Pseudogene in A*
A30: XAC3253 | B30: rimK | D30: 234.1818182 | E30: 191 | F30: 192 | G30: 5.538744077 | H30: =G30/D30 -> 0.02365146927 | I30: 0 | J30: =I30/E30 -> 0 | K30: 0 | L30: =K30/F30 -> 0 | M30: 43.18181818 | N30: 42.18181818 | O30: 43.18181818 | P30: Pseudogene in A*
A31: XAC3380 | B31: hypothetical | D31: 259 | E31: 94 | F31: 259 | G31: 0 | H31: =G31/D31 -> 0 | I31: 0 | J31: =I31/E31 -> 0 | K31: 0 | L31: =K31/F31 -> 0 | M31: 165 | N31: 0 | O31: 165 | P31: Pseudogene in A*
A32: XAC71Av2_450029 | B32: comA | C32: competence protein | D32: 0 | E32: 347 | F32: 0 | G32: - | H32: - | I32: 0 | J32: =I32/E32 -> 0 | K32: - | L32: - | M32: 347 | N32: 0 | O32: 347 | P32: Pseudogene in A*
A33: XAC0049 | B33: hypothetical | D33: 419.5454545 | E33: 419 | F33: 300 | G33: 1.020452015 | H33: =G33/D33 -> 0.002432279991 | I33: 0 | J33: =I33/E33 -> 0 | K33: 0 | L33: =K33/F33 -> 0 | M33: 0.5454545455 | N33: 119.5454545 | O33: 0.5454545455 | P33: Pseudogene in Aw
A34: XAC0201 | B34: adh | D34: 337 | E34: 337 | F34: 93 | G34: 0 | H34: =G34/D34 -> 0 | I34: 0 | J34: =I34/E34 -> 0 | K34: 0 | L34: =K34/F34 -> 0 | M34: 0 | N34: 244 | O34: 0 | P34: Pseudogene in Aw
A35: XAC0209 | B35: yojM | C35: superoxide dismutase like protein | D35: 199.1363636 | E35: 201 | F35: 145 | G35: 1.88622672 | H35: =G35/D35 -> 0.009472035572 | I35: 0 | J35: =I35/E35 -> 0 | K35: 0 | L35: =K35/F35 -> 0 | M35: 1.863636364 | N35: 54.13636364 | O35: 1.863636364 | P35: Pseudogene in Aw
A36: XAC0291 | B36: oar | C36: oar protein | D36: 998 | E36: 998 | F36: 555.4 | G36: 0 | H36: =G36/D36 -> 0 | I36: 0 | J36: =I36/E36 -> 0 | K36: 4.8 | L36: =K36/F36 -> 0.008642419878 | M36: 0 | N36: 442.6 | O36: 0 | P36: Pseudogene in Aw

Sheet Sheet2

Sheet Sheet3
